fUST/lending_fUST_20240519
["ID","MTS","AMOUNT","RATE_DAILY","PERIOD"]
[327482294,1716107433050,-500.0,0.00017252,2]
[327482295,1716107433059,-500.0,0.00017252,2]
[327482296,1716107433069,-597.48,0.00017252,2]
[327482297,1716107433079,-500.0,0.00017252,2]
[327482298,1716107433089,-500.0,0.00017252,2]
[327482299,1716107433222,-500.0,0.00017252,2]
[327482300,1716107433233,-500.0,0.00017252,2]
[327482301,1716107433243,-514.16,0.00017252,2]
[327482302,1716107433252,-500.0,0.00017252,2]
[327482303,1716107433263,-500.0,0.00017252,2]
[327482304,1716107433272,-500.0,0.00017252,2]
[327482305,1716107433282,-500.0,0.00017252,2]
[327482306,1716107433292,-500.0,0.00017252,2]
[327482307,1716107433301,-500.0,0.00017252,2]
[327482308,1716107433312,-500.0,0.00017252,2]
[327482309,1716107433321,-500.0,0.00017252,2]
[327482310,1716107433331,-314.82186503,0.00017253,2]
[327482311,1716107433340,-376.00371612,0.00017253,2]
[327482312,1716107433351,-500.0,0.00017253,2]
[327482313,1716107433361,-422.68,0.00017253,2]
[327482314,1716107433371,-187.4,0.00017253,2]
[327482315,1716107433381,-500.0,0.00017253,2]
[327482316,1716107433391,-500.0,0.00017253,2]
[327482317,1716107433400,-500.0,0.00017253,2]
[327482318,1716107433410,-428.77,0.00017253,2]
[327482319,1716107433420,-441.47,0.00017253,2]
[327482320,1716107433429,-460.60186022,0.00017253,2]
[327482321,1716107433439,-500.0,0.00017253,2]
[327482322,1716107433448,-500.0,0.00017253,2]
[327482323,1716107433457,-314.70682823,0.00017253,2]
[327482324,1716107433467,-500.0,0.00017253,2]
[327482325,1716107433476,-500.0,0.00017253,2]
[327482326,1716107433486,-500.0,0.00017253,2]
[327482327,1716107433495,-500.0,0.00017253,2]
[327482328,1716107433505,-516.31652946,0.00017253,2]
[327482329,1716107433514,-500.0,0.00017253,2]
[327482330,1716107433524,-500.0,0.00017253,2]
[327482331,1716107433533,-500.0,0.00017253,2]
[327482332,1716107433542,-500.0,0.00017253,2]
[327482333,1716107433552,-500.0,0.00017253,2]
[327482334,1716107433562,-500.0,0.00017253,2]
[327482335,1716107433572,-500.0,0.00017253,2]
[327482336,1716107433581,-500.0,0.00017253,2]
[327482337,1716107433591,-500.0,0.00017253,2]
[327482338,1716107433603,-500.0,0.00017253,2]
[327482339,1716107433613,-500.0,0.00017253,2]
[327482340,1716107433622,-500.0,0.00017253,2]
[327482341,1716107433632,-500.0,0.00017253,2]
[327482342,1716107433643,-500.0,0.00017253,2]
[327482343,1716107433653,-500.0,0.00017253,2]
[327482344,1716107433663,-500.0,0.00017253,2]
[327482345,1716107433673,-500.0,0.00017253,2]
[327482346,1716107433683,-500.0,0.00017253,2]
[327482347,1716107433694,-500.0,0.00017253,2]
[327482348,1716107433704,-500.0,0.00017253,2]
[327482349,1716107433713,-500.0,0.00017253,2]
[327482350,1716107433723,-500.0,0.00017253,2]
[327482351,1716107433732,-500.0,0.00017253,2]
[327482352,1716107433743,-500.0,0.00017253,2]
[327482353,1716107433753,-500.0,0.00017253,2]
[327482354,1716107433763,-253.34148298,0.00017253,2]
[327482355,1716107433773,-500.0,0.00017253,2]
[327482356,1716107433783,-500.0,0.00017253,2]
[327482357,1716107433792,-500.0,0.00017253,2]
[327482358,1716107433802,-500.0,0.00017253,2]
[327482359,1716107433813,-500.0,0.00017253,2]
[327482360,1716107433823,-500.0,0.00017253,2]
[327482361,1716107433833,-500.0,0.00017253,2]
[327482362,1716107433843,-500.0,0.00017253,2]
[327482363,1716107433853,-500.0,0.00017253,2]
[327482364,1716107433863,-500.0,0.00017253,2]
[327482365,1716107433873,-249.36,0.00017253,2]
[327482366,1716107433882,-500.0,0.00017253,2]
[327482367,1716107433892,-500.0,0.00017253,2]
[327482368,1716107433904,-500.0,0.00017253,2]
[327482369,1716107433914,-500.0,0.00017253,2]
[327482370,1716107433923,-502.81548973,0.00017253,2]
[327482371,1716107433933,-1127.4,0.00017253,2]
[327482372,1716107433943,-500.0,0.00017253,2]
[327482373,1716107433954,-258.67495574,0.00017253,2]
[327482374,1716107433964,-552.0686973,0.00017253,2]
[327482375,1716107433974,-500.0,0.00017253,2]
[327482376,1716107433984,-153.75821856,0.00017253,2]
[327482377,1716107434004,-242.67991636,0.00017253,2]
[327482378,1716107434015,-514.96266596,0.00017253,2]
[327482379,1716107434025,-500.0,0.00017253,2]
[327482380,1716107434035,-500.0,0.00017253,2]
[327482381,1716107434045,-500.0,0.00017253,2]
[327482382,1716107434056,-500.0,0.00017253,2]
[327482383,1716107434066,-500.0,0.00017253,2]
[327482384,1716107434076,-500.0,0.00017253,2]
[327482385,1716107434086,-500.0,0.00017253,2]
[327482386,1716107434095,-500.0,0.00017253,2]
[327482387,1716107434105,-157.90949361,0.00017253,2]
[327482388,1716107434115,-500.0,0.00017254,2]
[327482389,1716107434124,-355.89620618,0.00017254,2]
[327482390,1716107434134,-500.0,0.00017254,2]
[327482391,1716107434146,-538.11,0.00017254,2]
[327482392,1716107434156,-500.0,0.00017254,2]
[327482393,1716107434166,-500.0,0.00017254,2]
[327482394,1716107434176,-500.0,0.00017254,2]
[327482395,1716107434186,-500.0,0.00017254,2]
[327482396,1716107434196,-523.23786586,0.00017254,2]
[327482397,1716107434205,-500.0,0.00017254,2]
[327482398,1716107434216,-500.0,0.00017254,2]
[327482399,1716107434226,-500.0,0.00017254,2]
[327482400,1716107434236,-500.0,0.00017254,2]
[327482401,1716107434246,-317.23,0.00017254,2]
[327482402,1716107434256,-500.0,0.00017254,2]
[327482403,1716107434266,-500.0,0.00017254,2]
[327482404,1716107434276,-500.0,0.00017254,2]
[327482405,1716107434286,-500.0,0.00017254,2]
[327482406,1716107434296,-500.0,0.00017254,2]
[327482407,1716107434307,-500.0,0.00017254,2]
[327482408,1716107434317,-500.0,0.00017254,2]
[327482409,1716107434327,-500.0,0.00017254,2]
[327482410,1716107434336,-500.0,0.00017254,2]
[327482411,1716107434346,-500.0,0.00017254,2]
[327482412,1716107434356,-500.0,0.00017254,2]
[327482413,1716107434366,-500.0,0.00017254,2]
[327482414,1716107434376,-615.59476351,0.00017254,2]
[327482415,1716107434386,-505.19787995,0.00017254,2]
[327482416,1716107434396,-500.0,0.00017254,2]
[327482417,1716107434406,-501.74973369,0.00017254,2]
[327482418,1716107434416,-500.0,0.00017254,2]
[327482419,1716107434426,-202.99,0.00017254,2]
[327482420,1716107434435,-283.75956888,0.00017254,2]
[327482421,1716107434445,-418.42895051,0.00017254,2]
[327482422,1716107434455,-522.94149242,0.00017254,2]
[327482423,1716107434465,-223.88108337,0.00017254,2]
[327482424,1716107434475,-260.41168615,0.00017254,2]
[327482425,1716107434485,-168.34484346,0.00017254,2]
[327482426,1716107434495,-347.35050797,0.00017254,2]
[327482427,1716107434504,-500.0,0.00017254,2]
[327482428,1716107434514,-353.80518295,0.00017254,2]
[327482429,1716107434524,-233.29768449,0.00017254,2]
[327482430,1716107434533,-203.31820558,0.00017254,2]
[327482431,1716107434544,-236.30207499,0.00017254,2]
[327482432,1716107434554,-231.31981721,0.00017254,2]
[327482433,1716107434564,-324.93031575,0.00017254,4]
[327482434,1716107434574,-306.93944879,0.00017254,2]
[327482435,1716107434584,-432.40168614,0.00017254,2]
[327482436,1716107434595,-501.09622695,0.00017254,2]
[327482437,1716107434609,-283.50185745,0.00017254,2]
[327482438,1716107434619,-500.66892071,0.00017254,2]
[327482439,1716107434629,-207.39813941,0.00017254,2]
[327482440,1716107434639,-500.32689077,0.00017254,2]
[327482441,1716107434649,-505.02692562,0.00017254,2]
[327482442,1716107434659,-358.13980891,0.00017254,2]
[327482443,1716107434669,-420.67023238,0.00017254,2]
[327482444,1716107434679,-202.75083391,0.00017254,2]
[327482445,1716107434689,-303.77288068,0.00017254,2]
[327482446,1716107434699,-297.35088432,0.00017254,2]
[327482447,1716107434709,-500.0,0.00017254,2]
[327482448,1716107434719,-378.7310477,0.00017254,2]
[327482449,1716107434729,-500.0,0.00017254,2]
[327482450,1716107434739,-500.0,0.00017254,2]
[327482451,1716107434748,-500.0,0.00017254,2]
[327482452,1716107434759,-500.0,0.00017254,2]
[327482453,1716107434768,-478.96165614,0.00017254,2]
[327482454,1716107434778,-405.46728214,0.00017254,2]
[327482455,1716107434788,-500.0,0.00017254,2]
[327482456,1716107434798,-500.0,0.00017254,2]
[327482457,1716107434808,-527.73365276,0.00017254,2]
[327482458,1716107434818,-500.0,0.00017254,2]
[327482459,1716107434828,-500.0,0.00017254,2]
[327482460,1716107434838,-500.0,0.00017254,2]
[327482461,1716107434847,-500.0,0.00017254,2]
[327482462,1716107434857,-500.0,0.00017254,2]
[327482463,1716107434866,-2500.0,0.00017255,3]
[327482464,1716107434876,-506.57,0.00017255,2]
[327482465,1716107434886,-305.68268434,0.00017255,2]
[327482466,1716107434896,-155.73721726,0.00017255,2]
[327482467,1716107434906,-500.0,0.00017255,2]
[327482468,1716107434916,-500.0,0.00017255,2]
[327482469,1716107434926,-500.0,0.00017255,2]
[327482470,1716107434936,-500.0,0.00017255,2]
[327482471,1716107434945,-500.0,0.00017255,2]
[327482472,1716107434955,-500.0,0.00017255,2]
[327482473,1716107434965,-359.57995977,0.00017255,2]
[327482474,1716107434975,-500.0,0.00017255,2]
[327482475,1716107434984,-500.0,0.00017255,2]
[327482476,1716107434994,-500.0,0.00017255,2]
[327482477,1716107435004,-500.0,0.00017255,2]
[327482478,1716107435014,-500.0,0.00017255,2]
[327482479,1716107435024,-502.54351105,0.00017256,2]
[327482480,1716107435034,-500.0,0.00017256,2]
[327482481,1716107435043,-500.0,0.00017256,2]
[327482482,1716107435052,-500.0,0.00017256,2]
[327482483,1716107435062,-509.01121511,0.00017256,2]
[327482484,1716107435071,-348.80451072,0.00017256,2]
[327482485,1716107435081,-500.0,0.00017256,2]
[327482486,1716107435091,-500.0,0.00017256,2]
[327482487,1716107435101,-150.15499931,0.00017256,2]
[327482488,1716107435111,-273.02797312,0.00017257,2]
[327482489,1716107435120,-500.0,0.00017525,2]
[327482490,1716107435130,-593.2,0.00017525,2]
[327482491,1716107435140,-500.0,0.00017525,2]
[327482492,1716107435150,-500.0,0.00017526,2]
[327482493,1716107435160,-374.638673,0.00017526,2]
[327482494,1716107435170,-436.88,0.00017526,2]
[327482495,1716107435179,-212.37,0.00017526,2]
[327482496,1716107435189,-599.58,0.00017526,2]
[327482497,1716107435199,-500.0,0.00017526,2]
[327482498,1716107435209,-500.0,0.00017526,2]
[327482499,1716107435219,-500.0,0.00017526,2]
[327482500,1716107435229,-500.0,0.00017526,2]
[327482501,1716107435239,-500.0,0.00017526,2]
[327482502,1716107435249,-320.47748866,0.00017527,2]
[327482503,1716107435260,-422.61,0.00017527,2]
[327482504,1716107435270,-239.52775617,0.00017527,2]
[327482505,1716107435280,-379.98841665,0.00017527,2]
[327482506,1716107435290,-386.51836466,0.00017527,2]
[327482507,1716107435300,-244.43,0.00017527,2]
[327482508,1716107435311,-500.0,0.00017527,2]
[327482509,1716107435321,-295.64392202,0.00017527,2]
[327482510,1716107435332,-500.0,0.00017527,2]
[327482511,1716107435342,-500.0,0.00017527,2]
[327482512,1716107435352,-538.13433166,0.00017527,2]
[327482513,1716107435362,-500.0,0.00017527,2]
[327482514,1716107435372,-268.17965714,0.00017527,2]
[327482515,1716107435382,-270.41,0.00017527,2]
[327482516,1716107435393,-575.24027892,0.00017527,2]
[327482517,1716107435403,-500.0,0.00017527,2]
[327482518,1716107435413,-193.61873784,0.00017527,2]
[327482519,1716107435423,-426.23100569,0.00017527,2]
[327482520,1716107435433,-419.61040478,0.00017527,2]
[327482521,1716107435443,-500.0,0.00017527,2]
[327482522,1716107435452,-260.28,0.00017527,2]
[327482523,1716107435463,-500.0,0.00017527,2]
[327482524,1716107435472,-500.0,0.00017527,2]
[327482525,1716107435482,-170.58619834,0.00017527,2]
[327482526,1716107435492,-500.0,0.00017527,2]
[327482527,1716107435501,-500.0,0.00017527,2]
[327482528,1716107435511,-500.0,0.00017527,2]
[327482529,1716107435521,-500.0,0.00017527,2]
[327482530,1716107435531,-500.0,0.00017527,2]
[327482531,1716107435541,-248.88059002,0.00017527,2]
[327482532,1716107435551,-500.0,0.00017527,2]
[327482533,1716107435561,-1127.4,0.00017527,2]
[327482534,1716107435571,-159.33247436,0.00017527,2]
[327482535,1716107435581,-463.06973913,0.00017527,2]
[327482536,1716107435591,-500.0,0.00017527,2]
[327482537,1716107435604,-500.0,0.00017527,2]
[327482538,1716107435614,-500.0,0.00017527,2]
[327482539,1716107435624,-500.0,0.00017527,2]
[327482540,1716107435633,-265.73167693,0.00017528,2]
[327482541,1716107435645,-170.7724401,0.00017528,2]
[327482542,1716107435656,-500.0,0.00017528,2]
[327482543,1716107435666,-467.89387856,0.00017528,2]
[327482544,1716107435676,-500.0,0.00017528,2]
[327482545,1716107435686,-500.0,0.00017528,2]
[327482546,1716107435697,-312.58032298,0.00017528,2]
[327482547,1716107435707,-158.16899251,0.00017528,2]
[327482548,1716107435717,-155.35333554,0.00017529,2]
[327482549,1716107435727,-500.0,0.00017529,2]
[327482550,1716107435737,-637.6,0.00017529,2]
[327482551,1716107435747,-500.0,0.00017529,2]
[327482552,1716107435758,-1586.80667634,0.0001753,2]
[327482553,1716107435768,-235.33,0.00017799,2]
[327482554,1716107435778,-593.2,0.00017799,2]
[327482555,1716107435788,-500.0,0.00017799,2]
[327482556,1716107435800,-214.85937964,0.000178,2]
[327482557,1716107435811,-500.0,0.000178,2]
[327482558,1716107435821,-500.0,0.000178,2]
[327482559,1716107435831,-500.0,0.000178,2]
[327482560,1716107435842,-500.0,0.000178,2]
[327482561,1716107435852,-500.0,0.000178,2]
[327482562,1716107435862,-500.0,0.00017801,2]
[327482563,1716107435872,-500.0,0.00017801,2]
[327482564,1716107435883,-500.0,0.00017801,2]
[327482565,1716107435999,-254.63168636,0.00017801,2]
[327482566,1716107436009,-315.71227157,0.00017801,2]
[327482567,1716107436019,-500.0,0.00017801,2]
[327482568,1716107436028,-500.0,0.00017801,2]
[327482569,1716107436038,-385.71918536,0.00017801,2]
[327482570,1716107436054,-114.28081464,0.00017801,2]
[327482571,1716107436064,-500.0,0.00017801,2]
[327482572,1716107436074,-133.62377225,0.00017801,2]
[327482573,1716107436086,-366.37622775,0.00017801,2]
[327482574,1716107436097,-47.40977225,0.00017801,2]
[327482613,1716107438655,-529.13,0.00010959,2]
[327482615,1716107438665,-259.01101229,0.00017801,2]
[327482616,1716107438809,-193.57921546,0.00017801,2]
[327482617,1716107438820,-500.0,0.00017801,2]
[327482618,1716107438829,-500.0,0.00017801,2]
[327482619,1716107438838,-1127.4,0.00017801,2]
[327482620,1716107438848,-155.83,0.00017801,2]
[327482621,1716107438857,-500.0,0.00017801,2]
[327482622,1716107438867,-500.0,0.00017801,2]
[327482623,1716107438876,-500.0,0.00017802,2]
[327482624,1716107438886,-500.0,0.00017802,2]
[327482625,1716107438895,-500.0,0.00017802,2]
[327482626,1716107438905,-500.0,0.00017803,2]
[327482627,1716107438914,-5608.66939747,0.00017898,3]
[327482628,1716107438924,-10451.02330036,0.00017898,2]
[327482629,1716107438933,-895.99360919,0.00018,2]
[327482630,1716107438942,-8356.66836009,0.00018,7]
[327482631,1716107438951,-3945.28533072,0.00018,2]
[327482632,1716107438960,-593.2,0.00018073,2]
[327482633,1716107438970,-500.0,0.00018073,2]
[327482634,1716107438979,-500.0,0.00018074,2]
[327482635,1716107438988,-500.0,0.00018074,2]
[327482636,1716107438998,-500.0,0.00018074,2]
[327482637,1716107439007,-500.0,0.00018074,2]
[327482638,1716107439016,-334.72,0.00018074,2]
[327482639,1716107439026,-500.0,0.00018075,2]
[327482640,1716107439035,-344.93517534,0.00018075,2]
[327482641,1716107439045,-500.0,0.00018075,2]
[327482642,1716107439055,-500.0,0.00018075,2]
[327482643,1716107439065,-500.0,0.00018075,2]
[327482644,1716107439074,-500.0,0.00018075,2]
[327482645,1716107439084,-500.0,0.00018075,2]
[327482646,1716107439093,-500.0,0.00018075,2]
[327482647,1716107439103,-500.0,0.00018075,2]
[327482648,1716107439112,-500.0,0.00018075,2]
[327482649,1716107439122,-500.0,0.00018075,2]
[327482650,1716107439132,-1127.4,0.00018075,2]
[327482651,1716107439141,-500.0,0.00018075,2]
[327482652,1716107439151,-500.0,0.00018075,2]
[327482653,1716107439162,-500.0,0.00018076,2]
[327482654,1716107439171,-500.0,0.00018076,2]
[327482655,1716107439181,-500.0,0.00018076,2]
[327482656,1716107439191,-500.0,0.00018077,2]
[327482657,1716107439200,-593.2,0.00018347,2]
[327482658,1716107439210,-500.0,0.00018347,2]
[327482659,1716107439219,-500.0,0.00018348,2]
[327482660,1716107439228,-500.0,0.00018348,2]
[327482661,1716107439237,-369.81,0.00018348,2]
[327482662,1716107439247,-500.0,0.00018348,2]
[327482663,1716107439257,-500.0,0.00018349,2]
[327482664,1716107439266,-500.0,0.00018349,2]
[327482665,1716107439276,-500.0,0.00018349,2]
[327482666,1716107439286,-500.0,0.00018349,2]
[327482667,1716107439295,-500.0,0.00018349,2]
[327482668,1716107439305,-500.0,0.00018349,2]
[327482669,1716107439314,-500.0,0.00018349,2]
[327482670,1716107439323,-500.0,0.00018349,2]
[327482671,1716107439333,-500.0,0.00018349,2]
[327482672,1716107439342,-1127.4,0.00018349,2]
[327482673,1716107439352,-500.0,0.00018349,2]
[327482674,1716107439361,-500.0,0.00018349,2]
[327482675,1716107439371,-356.0484666,0.0001835,2]
[327482676,1716107439381,-500.0,0.0001835,2]
[327482677,1716107439390,-500.0,0.0001835,2]
[327482678,1716107439400,-493.23282905,0.00018351,2]
[327482679,1716107439410,-593.2,0.00018621,2]
[327482680,1716107439419,-500.0,0.00018621,2]
[327482681,1716107439429,-500.0,0.00018622,2]
[327482682,1716107439439,-500.0,0.00018622,2]
[327482683,1716107439448,-452.86,0.00018622,2]
[327482684,1716107439458,-500.0,0.00018623,2]
[327482685,1716107439467,-500.0,0.00018623,2]
[327482686,1716107439477,-500.0,0.00018623,2]
[327482687,1716107439487,-500.0,0.00018623,2]
[327482688,1716107439496,-500.0,0.00018623,2]
[327482689,1716107439506,-500.0,0.00018623,2]
[327482690,1716107439516,-500.0,0.00018623,2]
[327482691,1716107439525,-500.0,0.00018623,2]
[327482692,1716107439534,-500.0,0.00018623,2]
[327482693,1716107439544,-1127.4,0.00018623,2]
[327482694,1716107439553,-500.0,0.00018623,2]
[327482695,1716107439563,-500.0,0.00018623,2]
[327482696,1716107439572,-500.0,0.00018624,2]
[327482697,1716107439582,-241.27157801,0.00018624,2]
[327482698,1716107439591,-725.8587562,0.0001874,2]
[327482699,1716107439606,-593.2,0.00018895,2]
[327482700,1716107439616,-500.0,0.00018895,2]
[327482701,1716107439626,-500.0,0.00018896,2]
[327482702,1716107439635,-500.0,0.00018896,2]
[327482703,1716107439646,-372.9,0.00018897,2]
[327482704,1716107439656,-426.79,0.00018897,2]
[327482705,1716107439666,-500.0,0.00018897,2]
[327482706,1716107439677,-500.0,0.00018897,2]
[327482707,1716107439686,-500.0,0.00018897,2]
[327482708,1716107439697,-500.0,0.00018897,2]
[327482709,1716107439706,-500.0,0.00018897,2]
[327482710,1716107439716,-500.0,0.00018897,2]
[327482711,1716107439726,-1127.4,0.00018897,2]
[327482712,1716107439736,-303.43153824,0.00018897,2]
[327482713,1716107439745,-500.0,0.00018898,2]
[327482714,1716107439754,-1979.49521734,0.00018912,2]
[327482742,1716107441807,-2635.06438848,0.00018912,2]
[327482743,1716107441819,-155.47314599,0.00019,2]
[327482744,1716107441829,-593.2,0.00019169,2]
[327482745,1716107441839,-500.0,0.00019169,2]
[327482746,1716107441849,-500.0,0.0001917,2]
[327482747,1716107441859,-500.0,0.0001917,2]
[327482748,1716107441869,-500.0,0.00019171,2]
[327482749,1716107441879,-500.0,0.00019171,2]
[327482750,1716107441888,-500.0,0.00019171,2]
[327482751,1716107441898,-618.74923837,0.00019171,2]
[327482752,1716107441907,-500.0,0.00019171,2]
[327482753,1716107441916,-500.0,0.00019171,2]
[327482754,1716107441926,-1127.4,0.00019171,2]
[327482755,1716107441935,-500.0,0.00019172,2]
[327482756,1716107441944,-500.0,0.00019178,2]
[327482757,1716107441954,-500.0,0.00019178,2]
[327482758,1716107441963,-500.0,0.00019178,2]
[327482759,1716107441973,-595.0,0.00019178,2]
[327482760,1716107441982,-500.0,0.00019178,2]
[327482761,1716107441992,-500.0,0.00019178,2]
[327482762,1716107442001,-500.0,0.00019178,2]
[327482763,1716107442011,-500.0,0.00019178,2]
[327482764,1716107442020,-500.0,0.00019178,2]
[327482765,1716107442030,-500.0,0.00019178,2]
[327482766,1716107442039,-500.0,0.00019178,2]
[327482767,1716107442049,-243.23577108,0.00019178,2]
[327482779,1716107444072,-256.76422892,0.00019178,2]
[327482780,1716107444081,-500.0,0.00019178,2]
[327482781,1716107444091,-200.0,0.00019178,2]
[327482782,1716107444100,-104.03577108,0.00019178,2]
[327482791,1716107446680,-3324.99553675,0.00019177,2]
[327482811,1716107849265,10000.0,0.00019,10]
[327482812,1716107873021,639.0,0.00019,10]
[327482868,1716108631930,-453.74770734,9.306e-05,2]
[327482869,1716108631965,-67.59891935,9.306e-05,2]
[327482870,1716108631978,-1283.50622949,9.306e-05,2]
[327482898,1716108638066,-1182.59132367,9.306e-05,2]
[327482899,1716108638076,-846.84817719,9.307e-05,2]
[327482900,1716108638087,-7895.047463,9.401e-05,2]
[327482901,1716108638097,-154.83332647,9.501e-05,2]
[327482902,1716108638108,-745.33604605,9.596e-05,2]
[327482903,1716108638118,-1885.19395395,9.597e-05,2]
[327482905,1716108638128,-1136.44476732,0.0001,2]
[327482906,1716108638138,-767.36,0.00010959,2]
[327482908,1716108638148,-480.2207562,0.00013457,2]
[327482910,1716108638158,-306.3083692,0.00014758,2]
[327482911,1716108638167,-1148.90229176,0.00015,2]
[327482912,1716108638179,-586.0719446,0.00016,2]
[327482913,1716108638189,-1270.0,0.00016,2]
[327482914,1716108638199,-12275.47519078,0.00016437,2]
[327482915,1716108638213,-274.24725433,0.000165,2]
[327482916,1716108638223,-1058.59022026,0.000165,2]
[327482917,1716108638233,-500.0,0.00017251,2]
[327482918,1716108638243,-500.0,0.00017251,2]
[327482919,1716108638255,-500.0,0.00017251,2]
[327482920,1716108638267,-500.0,0.00017524,2]
[327482921,1716108638277,-500.0,0.00017524,2]
[327482922,1716108638289,-500.0,0.00017524,2]
[327482923,1716108638298,-500.0,0.00017524,2]
[327482924,1716108638308,-500.0,0.00017524,2]
[327482925,1716108638317,-500.0,0.00017524,2]
[327482926,1716108638327,-500.0,0.00017525,2]
[327482927,1716108638336,-500.0,0.00017525,2]
[327482928,1716108638346,-500.0,0.00017525,2]
[327482929,1716108638356,-500.0,0.00017525,2]
[327482930,1716108638365,-500.0,0.00017525,2]
[327482931,1716108638374,-500.0,0.00017525,2]
[327482932,1716108638385,-500.0,0.00017525,2]
[327482933,1716108638394,-500.0,0.00017525,2]
[327482934,1716108638404,-494.91307564,0.00017525,2]
[327482935,1716108638416,-5.08692436,0.00017525,2]
[327482936,1716108638425,-297.11010211,0.00017525,2]
[327482937,1716108638434,-500.0,0.00017525,2]
[327482938,1716108638444,-500.0,0.00017525,2]
[327482939,1716108638453,-500.0,0.00017525,2]
[327482940,1716108638462,-1049.79,0.00017525,2]
[327482941,1716108638472,-500.0,0.00017525,2]
[327482942,1716108638481,-500.0,0.00017525,2]
[327482943,1716108638492,-500.0,0.00017525,2]
[327482944,1716108638501,-500.0,0.00017798,2]
[327482945,1716108638510,-500.0,0.00017798,2]
[327482946,1716108638521,-500.0,0.00017798,2]
[327482947,1716108638530,-500.0,0.00017798,2]
[327482948,1716108638541,-500.0,0.00017798,2]
[327482949,1716108638550,-500.0,0.00017798,2]
[327482950,1716108638560,-500.0,0.00017798,2]
[327482951,1716108638570,-500.0,0.00017798,2]
[327482952,1716108638580,-586.56,0.00017798,2]
[327482953,1716108638589,-500.0,0.00017798,2]
[327482954,1716108638599,-500.0,0.00017798,2]
[327482955,1716108638609,-500.0,0.00017798,2]
[327482956,1716108638621,-500.0,0.00017798,2]
[327482957,1716108638630,-275.05233733,0.00017798,2]
[327482958,1716108638640,-500.0,0.00017798,2]
[327482959,1716108638649,-500.0,0.00017799,2]
[327482960,1716108638658,-500.0,0.00017799,2]
[327482961,1716108638668,-500.0,0.00017799,2]
[327482962,1716108638677,-500.0,0.00017799,2]
[327482963,1716108638686,-500.0,0.00017799,2]
[327482964,1716108638695,-500.0,0.00017799,2]
[327482965,1716108638705,-500.0,0.00017799,2]
[327482966,1716108638714,-500.0,0.00017799,2]
[327482967,1716108638723,-500.0,0.00017799,2]
[327482968,1716108638732,-457.41396978,0.00017799,2]
[327482969,1716108638742,-372.49967638,0.00017799,2]
[327482970,1716108638752,-500.0,0.00017799,2]
[327482971,1716108638761,-500.0,0.00017799,2]
[327482972,1716108638771,-1049.79,0.00017799,2]
[327482973,1716108638780,-500.0,0.00017799,2]
[327482974,1716108638790,-500.0,0.00017799,2]
[327482975,1716108638800,-10451.02330036,0.00017898,2]
[327482976,1716108638809,-2114.19374467,0.00017998,2]
[327482977,1716108638818,-340.0363445,0.00017999,2]
[327482978,1716108638827,-412.9630023,0.00017999,2]
[327482979,1716108638837,-6800.98049725,0.00018,7]
[327482980,1716108638846,-725.8587562,0.00018,2]
[327482981,1716108638856,-708.92465727,0.00018,2]
[327482982,1716108638865,-895.99360919,0.00018,2]